fUST/lending_fUST_20250220
["ID","MTS","AMOUNT","RATE_DAILY","PERIOD"]
[353758315,1740013851097,-400.0,0.00014273,2]
[353758316,1740013851107,-400.0,0.00014273,2]
[353758317,1740013851117,-400.0,0.00014273,2]
[353758318,1740013851127,-400.0,0.00014273,2]
[353758319,1740013851137,-400.0,0.00014273,2]
[353758320,1740013851147,-400.0,0.00014273,2]
[353758321,1740013851157,-400.0,0.00014273,2]
[353758322,1740013851167,-400.0,0.00014273,2]
[353758323,1740013851176,-400.0,0.00014273,2]
[353758324,1740013851186,-400.0,0.00014273,2]
[353758325,1740013851196,-400.0,0.00014273,2]
[353758326,1740013851206,-400.0,0.00014273,2]
[353758327,1740013851216,-400.0,0.00014273,2]
[353758328,1740013851226,-400.0,0.00014273,2]
[353758329,1740013851235,-400.0,0.00014273,2]
[353758330,1740013851245,-400.0,0.00014273,2]
[353758331,1740013851254,-400.0,0.00014273,2]
[353758332,1740013851265,-400.0,0.00014273,2]
[353758333,1740013851275,-400.0,0.00014273,2]
[353758334,1740013851286,-400.0,0.00014273,2]
[353758335,1740013851297,-400.0,0.00014273,2]
[353758336,1740013851307,-400.0,0.00014273,2]
[353758337,1740013851317,-400.0,0.00014273,2]
[353758338,1740013851327,-400.0,0.00014273,2]
[353758339,1740013851336,-400.0,0.00014273,2]
[353758340,1740013851346,-400.0,0.00014273,2]
[353758341,1740013851355,-400.0,0.00014273,2]
[353758342,1740013851366,-400.0,0.00014273,2]
[353758343,1740013851376,-400.0,0.00014273,2]
[353758344,1740013851386,-400.0,0.00014273,2]
[353758345,1740013851395,-400.0,0.00014273,2]
[353758346,1740013851405,-400.0,0.00014273,2]
[353758347,1740013851415,-400.0,0.00014273,2]
[353758348,1740013851425,-400.0,0.00014273,2]
[353758349,1740013851435,-400.0,0.00014273,2]
[353758350,1740013851445,-400.0,0.00014273,2]
[353758351,1740013851455,-400.0,0.00014273,2]
[353758352,1740013851465,-400.0,0.00014273,2]
[353758353,1740013851475,-400.0,0.00014273,2]
[353758354,1740013851485,-400.0,0.00014273,2]
[353758355,1740013851494,-400.0,0.00014273,2]
[353758356,1740013851504,-400.0,0.00014273,2]
[353758357,1740013851514,-400.0,0.00014273,2]
[353758358,1740013851524,-400.0,0.00014273,2]
[353758359,1740013851534,-223.0,0.00014273,2]
[353758360,1740013851543,-625.0,0.00014273,2]
[353758361,1740013851553,-625.0,0.00014273,2]
[353758362,1740013851563,-625.0,0.00014273,2]
[353758363,1740013851574,-447.0,0.00014273,2]
[353758364,1740013851583,-447.0,0.00014273,2]
[353758365,1740013851593,-447.0,0.00014273,2]
[353758366,1740013851603,-447.0,0.00014273,2]
[353758367,1740013851613,-447.0,0.00014273,2]
[353758368,1740013851623,-447.0,0.00014273,2]
[353758369,1740013851633,-447.0,0.00014273,2]
[353758370,1740013851643,-447.0,0.00014273,2]
[353758371,1740013851653,-447.0,0.00014273,2]
[353758372,1740013851663,-447.0,0.00014273,2]
[353758373,1740013851676,-447.0,0.00014273,2]
[353758374,1740013851686,-447.0,0.00014273,2]
[353758375,1740013851696,-447.0,0.00014273,2]
[353758376,1740013851706,-447.0,0.00014273,2]
[353758377,1740013851716,-447.0,0.00014273,2]
[353758378,1740013851726,-447.0,0.00014273,2]
[353758379,1740013851736,-447.0,0.00014273,2]
[353758380,1740013851745,-447.0,0.00014273,2]
[353758381,1740013851756,-447.0,0.00014273,2]
[353758382,1740013851766,-447.0,0.00014273,2]
[353758383,1740013851776,-447.0,0.00014273,2]
[353758384,1740013851786,-447.0,0.00014273,2]
[353758385,1740013851795,-447.0,0.00014273,2]
[353758386,1740013851805,-447.0,0.00014273,2]
[353758387,1740013851815,-447.0,0.00014273,2]
[353758388,1740013851824,-447.0,0.00014273,2]
[353758389,1740013851834,-447.0,0.00014273,2]
[353758390,1740013851844,-447.0,0.00014273,2]
[353758391,1740013851854,-447.0,0.00014273,2]
[353758392,1740013851864,-447.0,0.00014273,2]
[353758393,1740013851874,-447.0,0.00014273,2]
[353758394,1740013851883,-447.0,0.00014273,2]
[353758395,1740013851893,-447.0,0.00014273,2]
[353758396,1740013851903,-447.0,0.00014273,2]
[353758397,1740013851914,-447.0,0.00014273,2]
[353758398,1740013851923,-447.0,0.00014273,2]
[353758399,1740013851934,-447.0,0.00014273,2]
[353758400,1740013851944,-447.0,0.00014273,2]
[353758401,1740013851953,-447.0,0.00014273,2]
[353758402,1740013851963,-447.0,0.00014273,2]
[353758403,1740013851973,-447.0,0.00014273,2]
[353758404,1740013851983,-447.0,0.00014273,2]
[353758405,1740013851992,-447.0,0.00014273,2]
[353758406,1740013852001,-447.0,0.00014273,2]
[353758407,1740013852010,-447.0,0.00014273,2]
[353758408,1740013852020,-447.0,0.00014273,2]
[353758409,1740013852029,-447.0,0.00014273,2]
[353758410,1740013852039,-500.0,0.00014273,2]
[353758411,1740013852049,-500.0,0.00014273,2]
[353758412,1740013852059,-446.50592814,0.00014273,2]
[353758413,1740013852068,-500.0,0.00014273,2]
[353758414,1740013852077,-500.0,0.00014273,2]
[353758415,1740013852086,-500.0,0.00014273,2]
[353758416,1740013852096,-636.42,0.00014273,2]
[353758417,1740013852105,-500.0,0.00014273,2]
[353758418,1740013852115,-500.0,0.00014273,2]
[353758419,1740013852125,-500.0,0.00014273,2]
[353758420,1740013852135,-500.0,0.00014273,2]
[353758421,1740013852144,-500.0,0.00014273,2]
[353758422,1740013852154,-17094.74,0.00014273,2]
[353758423,1740013852163,-582.87,0.00014273,2]
[353758424,1740013852173,-500.0,0.00014273,2]
[353758425,1740013852183,-565.46,0.00014273,2]
[353758426,1740013852192,-500.0,0.00014273,2]
[353758427,1740013852202,-500.0,0.00014273,2]
[353758428,1740013852212,-500.0,0.00014273,2]
[353758429,1740013852221,-500.0,0.00014273,2]
[353758430,1740013852231,-620.06,0.00014273,2]
[353758431,1740013852241,-500.0,0.00014273,2]
[353758432,1740013852250,-935.39,0.00014273,2]
[353758433,1740013852260,-786.27,0.00014273,2]
[353758434,1740013852271,-1339.64,0.00014273,2]
[353758435,1740013852280,-2415.0,0.00014273,2]
[353758436,1740013852290,-500.0,0.00014273,2]
[353758437,1740013852300,-500.0,0.00014273,2]
[353758438,1740013852309,-1594.37,0.00014273,2]
[353758439,1740013852319,-500.0,0.00014273,2]
[353758440,1740013852329,-807.958279,0.00014273,2]
[353758441,1740013852339,-807.958279,0.00014273,2]
[353758442,1740013852349,-2541.082803,0.00014273,2]
[353758443,1740013852359,-838.74,0.00014273,2]
[353758444,1740013852368,-2541.082803,0.00014273,2]
[353758445,1740013852378,-500.0,0.00014273,2]
[353758446,1740013852386,-344.82,0.00014273,2]
[353758447,1740013852396,-500.0,0.00014273,2]
[353758448,1740013852407,-500.0,0.00014273,2]
[353758449,1740013852417,-1322.35,0.00014273,2]
[353758450,1740013852426,-500.0,0.00014273,2]
[353758451,1740013852436,-627.264385,0.00014273,2]
[353758452,1740013852446,-627.264385,0.00014273,2]
[353758453,1740013852456,-500.0,0.00014273,2]
[353758454,1740013852467,-739.3,0.00014273,2]
[353758455,1740013852478,-500.0,0.00014273,2]
[353758456,1740013852488,-729.4,0.00014273,2]
[353758457,1740013852498,-500.0,0.00014273,2]
[353758458,1740013852507,-720.36,0.00014273,2]
[353758459,1740013852517,-6999.65,0.00014273,2]
[353758460,1740013852527,-1167.085957,0.00014273,2]
[353758461,1740013852538,-500.0,0.00014273,2]
[353758462,1740013852548,-1167.085957,0.00014273,2]
[353758463,1740013852558,-504.63,0.00014273,2]
[353758464,1740013852577,-500.0,0.00014273,2]
[353758465,1740013852587,-609.45,0.00014273,2]
[353758466,1740013852598,-500.0,0.00014273,2]
[353758467,1740013852608,-1837.95,0.00014273,2]
[353758468,1740013852618,-500.0,0.00014273,2]
[353758469,1740013852628,-500.0,0.00014273,2]
[353758470,1740013852638,-1607.47,0.00014273,2]
[353758471,1740013852648,-500.0,0.00014273,2]
[353758472,1740013852658,-580.19,0.00014273,2]
[353758473,1740013852667,-1981.68,0.00014273,2]
[353758474,1740013852681,-500.0,0.00014273,2]
[353758475,1740013852691,-5345.53,0.00014273,2]
[353758476,1740013852701,-938.87,0.00014273,2]
[353758477,1740013852711,-1049.77,0.00014273,2]
[353758478,1740013852720,-500.0,0.00014273,2]
[353758479,1740013852730,-500.0,0.00014273,2]
[353758480,1740013852739,-663.25779959,0.00014277,2]
[353758481,1740013852749,-410.0,0.0001428,2]
[353758482,1740013852760,-410.0,0.0001428,2]
[353758483,1740013852770,-410.0,0.0001428,2]
[353758484,1740013852780,-410.0,0.0001428,2]
[353758485,1740013852790,-410.0,0.0001428,2]
[353758486,1740013852799,-410.0,0.0001428,2]
[353758487,1740013852809,-410.0,0.0001428,2]
[353758488,1740013852818,-410.0,0.0001428,2]
[353758489,1740013852827,-410.0,0.0001428,2]
[353758490,1740013852837,-410.0,0.0001428,2]
[353758491,1740013852848,-410.0,0.0001428,2]
[353758492,1740013852857,-410.0,0.0001428,2]
[353758493,1740013852867,-410.0,0.0001428,2]
[353758494,1740013852876,-410.0,0.0001428,2]
[353758495,1740013852885,-410.0,0.0001428,2]
[353758496,1740013852895,-410.0,0.0001428,2]
[353758497,1740013852904,-410.0,0.0001428,2]
[353758498,1740013852915,-410.0,0.0001428,2]
[353758499,1740013852924,-410.0,0.0001428,2]
[353758500,1740013852934,-410.0,0.0001428,2]
[353758501,1740013852944,-410.0,0.0001428,2]
[353758502,1740013852953,-410.0,0.0001428,2]
[353758503,1740013852962,-410.0,0.0001428,2]
[353758504,1740013852971,-410.0,0.0001428,2]
[353758505,1740013852980,-410.0,0.0001428,2]
[353758506,1740013852989,-410.0,0.0001428,2]
[353758507,1740013852998,-410.0,0.0001428,2]
[353758508,1740013853008,-410.0,0.0001428,2]
[353758509,1740013853018,-410.0,0.0001428,2]
[353758510,1740013853027,-410.0,0.0001428,2]
[353758511,1740013853036,-410.0,0.0001428,2]
[353758512,1740013853045,-410.0,0.0001428,2]
[353758513,1740013853055,-410.0,0.0001428,2]
[353758514,1740013853064,-410.0,0.0001428,2]
[353758515,1740013853073,-410.0,0.0001428,2]
[353758516,1740013853082,-410.0,0.0001428,2]
[353758517,1740013853091,-410.0,0.0001428,2]
[353758518,1740013853101,-410.0,0.0001428,2]
[353758519,1740013853110,-410.0,0.0001428,2]
[353758520,1740013853119,-410.0,0.0001428,2]
[353758521,1740013853129,-410.0,0.0001428,2]
[353758522,1740013853138,-410.0,0.0001428,2]
[353758523,1740013853147,-410.0,0.0001428,2]
[353758524,1740013853156,-410.0,0.0001428,2]
[353758525,1740013853166,-410.0,0.0001428,2]
[353758526,1740013853175,-410.0,0.0001428,2]
[353758527,1740013853184,-410.0,0.0001428,2]
[353758528,1740013853194,-410.0,0.0001428,2]
[353758529,1740013853203,-410.0,0.0001428,2]
[353758530,1740013853212,-410.0,0.0001428,2]
[353758531,1740013853222,-410.0,0.0001428,2]
[353758532,1740013853231,-410.0,0.0001428,2]
[353758533,1740013853241,-151.0,0.000143,2]
[353758534,1740013853250,-5337.50010018,0.00014338,2]
[353758535,1740013853260,-1672.82742775,0.00014338,2]
[353758536,1740013853271,-1672.82742775,0.00014338,2]
[353758537,1740013853281,-1672.82742775,0.00014338,2]
[353758538,1740013853291,-1672.82742775,0.00014338,2]
[353758539,1740013853421,-1672.82742775,0.00014338,2]
[353758540,1740013853432,-1672.82742775,0.00014338,2]
[353758541,1740013853442,-1672.82742775,0.00014338,2]
[353758542,1740013853452,-1672.82742775,0.00014338,2]
[353758543,1740013853462,-1672.82742775,0.00014338,2]
[353758544,1740013853471,-1672.82742775,0.00014338,2]
[353758545,1740013853480,-1672.82742775,0.00014338,2]
[353758546,1740013853490,-1672.82742775,0.00014338,2]
[353758547,1740013853500,-1672.82742775,0.00014338,2]
[353758548,1740013853510,-1672.82742775,0.00014338,2]
[353758549,1740013853522,-1672.82742775,0.00014338,2]
[353758550,1740013853532,-1672.82742775,0.00014338,2]
[353758551,1740013853541,-1672.82742775,0.00014338,2]
[353758552,1740013853550,-1672.82742775,0.00014338,2]
[353758553,1740013853560,-1672.82742775,0.00014338,2]
[353758554,1740013853569,-1672.82,0.00014338,2]
[353758555,1740013853579,-203.7806808,0.00014338,2]
[353758556,1740013853588,-203.7806808,0.00014338,2]
[353758557,1740013853598,-203.7806808,0.00014338,2]
[353758558,1740013853607,-203.7806808,0.00014338,2]
[353758559,1740013853617,-203.7806808,0.00014338,2]
[353758560,1740013853626,-203.7806808,0.00014338,2]
[353758561,1740013853635,-203.7806808,0.00014338,2]
[353758562,1740013853646,-203.7806808,0.00014338,2]
[353758563,1740013853655,-203.7806808,0.00014338,2]
[353758564,1740013853666,-203.7806808,0.00014338,2]
[353758565,1740013853678,-203.7806808,0.00014338,2]
[353758566,1740013853688,-203.7806808,0.00014338,2]
[353758567,1740013853697,-203.7806808,0.00014338,2]
[353758568,1740013853706,-203.7806808,0.00014338,2]
[353758569,1740013853715,-203.7806808,0.00014338,2]
[353758570,1740013853726,-203.7806808,0.00014338,2]
[353758571,1740013853735,-203.7806808,0.00014338,2]
[353758572,1740013853745,-203.7806808,0.00014338,2]
[353758573,1740013853755,-203.7806808,0.00014338,2]
[353758574,1740013853766,-203.78,0.00014338,2]
[353758575,1740013853775,-500.0,0.00014356,2]
[353758576,1740013853785,-500.0,0.00014356,2]
[353758577,1740013853794,-500.0,0.00014356,2]
[353758578,1740013853804,-500.0,0.00014356,2]
[353758579,1740013853813,-500.0,0.00014356,2]
[353758580,1740013853823,-636.42,0.00014356,2]
[353758581,1740013853832,-500.0,0.00014356,2]
[353758582,1740013853841,-500.0,0.00014356,2]
[353758583,1740013853850,-500.0,0.00014356,2]
[353758584,1740013853860,-500.0,0.00014356,2]
[353758585,1740013853869,-500.0,0.00014356,2]
[353758586,1740013853879,-17094.74,0.00014356,2]
[353758587,1740013853889,-582.87,0.00014356,2]
[353758588,1740013853899,-500.0,0.00014356,2]
[353758589,1740013853908,-565.46,0.00014356,2]
[353758590,1740013853918,-500.0,0.00014356,2]
[353758591,1740013853927,-500.0,0.00014356,2]
[353758592,1740013853937,-500.0,0.00014356,2]
[353758593,1740013853947,-500.0,0.00014356,2]
[353758594,1740013853956,-620.06,0.00014356,2]
[353758595,1740013853966,-500.0,0.00014356,2]
[353758596,1740013853975,-935.39,0.00014356,2]
[353758597,1740013853984,-786.27,0.00014356,2]
[353758598,1740013853993,-1339.64,0.00014356,2]
[353758599,1740013854003,-2415.0,0.00014356,2]
[353758600,1740013854013,-225.64,0.00014356,2]
[353758601,1740013854023,-500.0,0.00014356,2]
[353758602,1740013854032,-1594.37,0.00014356,2]
[353758603,1740013854041,-500.0,0.00014356,2]
[353758604,1740013854051,-838.74,0.00014356,2]
[353758605,1740013854061,-500.0,0.00014356,2]
[353758606,1740013854070,-500.0,0.00014356,2]
[353758607,1740013854080,-500.0,0.00014356,2]
[353758608,1740013854090,-1322.35,0.00014356,2]
[353758609,1740013854099,-500.0,0.00014356,2]
[353758610,1740013854109,-500.0,0.00014356,2]
[353758611,1740013854119,-739.3,0.00014356,2]
[353758612,1740013854129,-500.0,0.00014356,2]
[353758613,1740013854138,-729.4,0.00014356,2]
[353758614,1740013854148,-405.11,0.00014356,2]
[353758615,1740013854157,-720.36,0.00014356,2]
[353758616,1740013854167,-6999.65,0.00014356,2]
[353758617,1740013854176,-500.0,0.00014356,2]
[353758618,1740013854186,-500.0,0.00014356,2]
[353758619,1740013854195,-504.63,0.00014356,2]
[353758620,1740013854205,-609.45,0.00014356,2]
[353758621,1740013854215,-500.0,0.00014356,2]
[353758622,1740013854224,-1837.95,0.00014356,2]
[353758623,1740013854233,-500.0,0.00014356,2]
[353758624,1740013854243,-500.0,0.00014356,2]
[353758625,1740013854253,-1607.47,0.00014356,2]
[353758626,1740013854264,-391.16330711,0.00014356,2]
[353758627,1740013854274,-580.19,0.00014356,2]
[353758628,1740013854284,-1981.68,0.00014356,2]
[353758629,1740013854293,-500.0,0.00014356,2]
[353758630,1740013854303,-5345.53,0.00014356,2]
[353758631,1740013854313,-938.87,0.00014356,2]
[353758632,1740013854322,-1049.77,0.00014356,2]
[353758633,1740013854331,-500.0,0.00014356,2]
[353758634,1740013854341,-500.0,0.00014356,2]
[353758635,1740013854350,-500.0,0.00014438,2]
[353758636,1740013854359,-500.0,0.00014438,2]
[353758637,1740013854369,-500.0,0.00014438,2]
[353758638,1740013854378,-500.0,0.00014438,2]
[353758639,1740013854388,-500.0,0.00014438,2]
[353758640,1740013854397,-636.42,0.00014438,2]
[353758641,1740013854407,-500.0,0.00014438,2]
[353758642,1740013854416,-500.0,0.00014438,2]
[353758643,1740013854426,-151.0,0.00014438,2]
[353758644,1740013854435,-183.232478,0.00014438,2]
[353758645,1740013854444,-500.0,0.00014438,2]
[353758646,1740013854454,-151.0,0.00014438,2]
[353758647,1740013854463,-151.0,0.00014438,2]
[353758648,1740013854473,-4040.729746,0.00014438,2]
[353758649,1740013854482,-2490.844069,0.00014438,2]
[353758650,1740013854492,-977.592803,0.00014438,2]
[353758651,1740013854502,-4040.729746,0.00014438,2]
[353758652,1740013854512,-151.0,0.00014438,2]
[353758653,1740013854521,-500.0,0.00014438,2]
[353758654,1740013854530,-2490.844069,0.00014438,2]
[353758655,1740013854539,-977.592803,0.00014438,2]
[353758656,1740013854549,-500.0,0.00014438,2]
[353758657,1740013854559,-17094.74,0.00014438,2]
[353758658,1740013854569,-582.87,0.00014438,2]
[353758659,1740013854580,-500.0,0.00014438,2]
[353758660,1740013854589,-565.46,0.00014438,2]
[353758661,1740013854599,-500.0,0.00014438,2]
[353758662,1740013854608,-500.0,0.00014438,2]
[353758663,1740013854618,-500.0,0.00014438,2]
[353758664,1740013854627,-620.06,0.00014438,2]
[353758665,1740013854636,-500.0,0.00014438,2]
[353758666,1740013854646,-935.39,0.00014438,2]
[353758667,1740013854656,-786.27,0.00014438,2]
[353758668,1740013854666,-1339.64,0.00014438,2]
[353758669,1740013854678,-2415.0,0.00014438,2]
[353758670,1740013854689,-251.537168,0.00014438,2]
[353758671,1740013854699,-251.537168,0.00014438,2]
[353758672,1740013854708,-1594.37,0.00014438,2]
[353758673,1740013854718,-500.0,0.00014438,2]
[353758674,1740013854728,-1352.71955,0.00014438,2]
[353758675,1740013854738,-1352.71955,0.00014438,2]
[353758676,1740013854747,-838.74,0.00014438,2]
[353758677,1740013854758,-500.0,0.00014438,2]
[353758678,1740013854769,-500.0,0.00014438,2]
[353758679,1740013854778,-500.0,0.00014438,2]
[353758680,1740013854788,-1322.35,0.00014438,2]
[353758681,1740013854797,-500.0,0.00014438,2]
[353758682,1740013854807,-151.0,0.00014438,2]
[353758683,1740013854816,-500.0,0.00014438,2]
[353758684,1740013854826,-739.3,0.00014438,2]
[353758685,1740013854835,-500.0,0.00014438,2]
[353758686,1740013854845,-537.887263,0.00014438,2]
[353758687,1740013854854,-151.0,0.00014438,2]
[353758688,1740013854863,-537.887263,0.00014438,2]
[353758689,1740013854872,-151.0,0.00014438,2]
[353758690,1740013854882,-720.36,0.00014438,2]
[353758691,1740013854892,-6999.65,0.00014438,2]
[353758692,1740013854901,-500.0,0.00014438,2]
[353758693,1740013854911,-504.63,0.00014438,2]
[353758694,1740013854921,-609.45,0.00014438,2]
[353758695,1740013854931,-500.0,0.00014438,2]
[353758696,1740013854940,-1837.95,0.00014438,2]
[353758697,1740013854949,-333.93,0.00014438,2]
[353758698,1740013854959,-151.0,0.00014438,2]
[353758699,1740013854969,-500.0,0.00014438,2]
[353758700,1740013854979,-1607.47,0.00014438,2]
[353758701,1740013854989,-1022.629881,0.00014438,2]
[353758702,1740013854999,-1022.629881,0.00014438,2]
[353758703,1740013855009,-580.19,0.00014438,2]
[353758704,1740013855020,-1981.68,0.00014438,2]
[353758705,1740013855029,-500.0,0.00014438,2]
[353758706,1740013855039,-196.366296,0.00014438,2]
[353758707,1740013855048,-196.366296,0.00014438,2]
[353758708,1740013855059,-5345.53,0.00014438,2]
[353758709,1740013855068,-938.87,0.00014438,2]
[353758710,1740013855078,-1049.77,0.00014438,2]
[353758711,1740013855087,-500.0,0.00014438,2]
[353758712,1740013855097,-500.0,0.00014438,2]
[353758713,1740013855106,-151.0,0.000145,2]
[353758714,1740013855115,-500.0,0.0001452,2]
[353758715,1740013855125,-521.66,0.0001452,2]
[353758716,1740013855134,-529.14,0.0001452,2]
[353758717,1740013855144,-500.0,0.0001452,2]
[353758718,1740013855153,-500.0,0.0001452,2]
[353758719,1740013855162,-636.42,0.0001452,2]
[353758720,1740013855173,-500.0,0.0001452,2]
[353758721,1740013855182,-500.0,0.0001452,2]
[353758722,1740013855191,-500.0,0.0001452,2]
[353758723,1740013855201,-691.309199,0.0001452,2]
[353758724,1740013855210,-691.309199,0.0001452,2]
[353758725,1740013855219,-500.0,0.0001452,2]
[353758726,1740013855228,-450.5749384,0.0001452,2]
[353758727,1740013855238,-17094.74,0.0001452,2]
[353758728,1740013855248,-582.87,0.0001452,2]
[353758729,1740013855257,-500.0,0.0001452,2]
[353758730,1740013855268,-565.46,0.0001452,2]
[353758731,1740013855278,-500.0,0.0001452,2]
[353758732,1740013855288,-548.98622033,0.0001452,2]
[353758733,1740013855297,-500.0,0.0001452,2]
[353758734,1740013855307,-620.06,0.0001452,2]
[353758735,1740013855316,-500.0,0.0001452,2]
[353758736,1740013855326,-935.39,0.0001452,2]
[353758737,1740013855335,-786.27,0.0001452,2]
[353758738,1740013855345,-1339.64,0.0001452,2]
[353758739,1740013855356,-2415.0,0.0001452,2]
[353758740,1740013855365,-1594.37,0.0001452,2]
[353758741,1740013855375,-838.74,0.0001452,2]
[353758742,1740013855386,-500.0,0.0001452,2]
[353758743,1740013855396,-500.0,0.0001452,2]
[353758744,1740013855407,-1322.35,0.0001452,2]
[353758745,1740013855417,-500.0,0.0001452,2]
[353758746,1740013855427,-500.0,0.0001452,2]
[353758747,1740013855437,-739.3,0.0001452,2]
[353758748,1740013855447,-500.0,0.0001452,2]
[353758749,1740013855457,-720.36,0.0001452,2]
[353758750,1740013855467,-6999.65,0.0001452,2]
[353758751,1740013855477,-500.0,0.0001452,2]
[353758752,1740013855487,-504.63,0.0001452,2]
[353758753,1740013855497,-609.45,0.0001452,2]
[353758754,1740013855507,-500.0,0.0001452,2]
[353758755,1740013855519,-1837.95,0.0001452,2]
[353758756,1740013855530,-1607.47,0.0001452,2]
[353758757,1740013855540,-580.19,0.0001452,2]
[353758758,1740013855550,-1981.68,0.0001452,2]
[353758759,1740013855561,-500.0,0.0001452,2]
[353758760,1740013855571,-5345.53,0.0001452,2]
[353758761,1740013855581,-938.87,0.0001452,2]
[353758762,1740013855592,-1049.77,0.0001452,2]
[353758763,1740013855602,-500.0,0.0001452,2]
[353758764,1740013855611,-500.0,0.0001452,2]
[353758765,1740013855622,-1000.0,0.00014521,2]
[353758766,1740013855632,-1000.0,0.00014521,2]
[353758767,1740013855642,-1000.0,0.00014521,2]
[353758768,1740013855652,-663.25779959,0.00014533,2]
[353758769,1740013855662,-151.0,0.000146,2]
[353758770,1740013855674,-159.0,0.000146,3]
[353758771,1740013855685,-162.72395398,0.000146,4]
[353758772,1740013855695,-2316.5004168,0.00014601,2]
[353758773,1740013855705,-500.0,0.00014602,2]
[353758774,1740013855715,-1391.96241,0.00014602,2]
[353758775,1740013855724,-1391.96241,0.00014602,2]
[353758776,1740013855734,-151.0,0.00014602,2]
[353758777,1740013855743,-857.48366,0.00014602,2]
[353758778,1740013855754,-151.0,0.00014602,2]
[353758779,1740013855766,-857.48366,0.00014602,2]
[353758780,1740013855777,-500.0,0.00014602,2]
[353758781,1740013855786,-500.0,0.00014602,2]
[353758782,1740013855796,-636.42,0.00014602,2]
[353758783,1740013855805,-519.17707,0.00014602,2]
[353758784,1740013855816,-519.17707,0.00014602,2]
[353758785,1740013855825,-379.20285,0.00014602,2]
[353758786,1740013855836,-379.20285,0.00014602,2]
[353758787,1740013855846,-185.37,0.00014602,2]
[353758788,1740013855855,-500.0,0.00014602,2]
[353758789,1740013855865,-1049.066856,0.00014602,2]
[353758790,1740013855875,-1049.066856,0.00014602,2]
[353758791,1740013855885,-500.0,0.00014602,2]
[353758792,1740013855895,-500.0,0.00014602,2]
[353758793,1740013855905,-17094.74,0.00014602,2]
[353758794,1740013855915,-582.87,0.00014602,2]
[353758795,1740013855925,-648.60184627,0.00014602,2]
[353758796,1740013855934,-565.46,0.00014602,2]
[353758797,1740013855944,-500.0,0.00014602,2]
[353758798,1740013855954,-191.39475227,0.00014602,2]
[353758799,1740013855964,-620.06,0.00014602,2]
[353758800,1740013855974,-500.0,0.00014602,2]
[353758801,1740013855984,-935.39,0.00014602,2]
[353758802,1740013855994,-786.27,0.00014602,2]
[353758803,1740013856003,-1339.64,0.00014602,2]
[353758804,1740013856013,-2415.0,0.00014602,2]
[353758805,1740013856023,-1594.37,0.00014602,2]
[353758806,1740013856033,-2541.082803,0.00014602,2]
[353758807,1740013856043,-838.74,0.00014602,2]
[353758808,1740013856159,-2541.082803,0.00014602,2]
[353758809,1740013856170,-495.47,0.00014602,2]
[353758810,1740013856180,-500.0,0.00014602,2]
[353758811,1740013856190,-1322.35,0.00014602,2]
[353758812,1740013856200,-512.95912542,0.00014602,2]
[353758813,1740013856210,-500.0,0.00014602,2]
[353758814,1740013856219,-739.3,0.00014602,2]